Cogmind - Beta 16 @@@ ROGUE MODE // 2025.11.16 @ 16:18:44 Player: Mozco Result: Destroyed by Y-45 Defender with Beam Rifle Performance ------------- Evolutions (2) 1000 Regions Visited (4) 800 Robots Destroyed (34) 170 Value Destroyed (1212) 1212 Prototype IDs (3) 60 Alien Tech Used (0) 0 Bonus (200) 200 TOTAL SCORE: 3442 Bonus ------- Pacifist 200 Cogmind --------- Core Integrity 0/550 Matter 280/300 Energy 274/280 System Corruption 47% Temperature Cool (12) Movement Treading (160) Location -8/Storage Parts ------- > --- POWER (1) -------- Heavy Ion Engine > --- PROPULSION (3) --- Light Treads Light Treads Light Treads > --- UTILITY (5) ------ Small Storage Unit Medium Storage Unit Improved Signal Interpreter Melee Analysis Suite > --- WEAPON (2) ------- Maul Heavy Flail > --- INVENTORY (10) --- Light Ion Engine Deuterium Engine Light Deuterium Engine Improved Sensor Array Improved Terrain Scan Processor Peak State ------------ > --- POWER ------------ Improved Ion Engine > --- PROPULSION ------- Aluminum Leg Aluminum Leg Aluminum Leg > --- UTILITY ---------- Small Storage Unit Improved Sensor Array Improved Signal Interpreter Melee Analysis Suite Shield Generator > --- WEAPON ----------- Mace Maul > --- INVENTORY -------- Light Ion Engine Improved Ion Engine Light Deuterium Engine Aluminum Leg Aluminum Leg Disposable Heat Sink [Rating: 22] Favorites ----------- Power Improved Ion Engine Engine Improved Ion Engine Propulsion Aluminum Leg Treads Light Treads Leg Aluminum Leg Utility Small Storage Unit Device Disposable Heat Sink Storage Small Storage Unit Processor Melee Analysis Suite Protection Light Armor Plating Weapon Maul Impact Weapon Maul Build | -11 -10 -9 -8 -8 ------- Run | Yrd Mat Mat Mat Sto Slots Evolved 4 | . . 2 2 . Power . | . . . . . Propulsion 1 | . . . 1 . Utility 3 | . . 2 1 . Weapon . | . . . . . Parts Attached 28 | 1 . 10 4 13 Power 4 | . . 2 . 2 Engine 4 | . . 2 . 2 Core . | . . . . . Reactor . | . . . . . Propulsion 11 | . . 5 . 6 Treads 3 | . . . . 3 Leg 8 | . . 5 . 3 Wheel . | . . . . . Hover . | . . . . . Flight . | . . . . . Utility 10 | 1 . 1 4 4 Device 4 | . . 1 2 1 Storage 2 | 1 . . . 1 Processor 2 | . . . 2 . Hackware . | . . . . . Protection 2 | . . . . 2 Artifact . | . . . . . Weapon 3 | . . 2 . 1 Energy Gun . | . . . . . Energy Cannon . | . . . . . Ballistic Gun . | . . . . . Ballistic Cannon . | . . . . . Launcher . | . . . . . Special Weapon . | . . . . . Impact Weapon 3 | . . 2 . 1 Slashing Weapon . | . . . . . Piercing Weapon . | . . . . . Special Melee Weapon . | . . . . . Unidentified Prototypes 1 | . . . . 1 Corrupted Parts 6 | . . 1 . 5 System Corruption 54 | . . 7 . 47 Parts Lost 15 | . . 1 2 12 Power 2 | . . 1 . 1 Propulsion 8 | . . . 1 7 Utility 4 | . . . 1 3 Weapon 1 | . . . . 1 Highest Loss Streak 3 | . . 1 1 3 To Critical Strikes . | . . . . . Average Backups 5 | 2 5 4 6 5 Power 3 | . 2 2 3 3 Propulsion 1 | 1 2 1 2 . Utility . | . 1 . . 1 Weapon . | . . . . . Tool/Special . | . . . . . Unused Backups 4 | . . . . 4 Power 3 | . . . . 3 Propulsion . | . . . . . Utility 1 | . . . . 1 Weapon . | . . . . . Tool/Special . | . . . . . Average Slot Usage (%) 75 | . . 56 87 83 Engine 8 | . . 7 9 9 Leg 15 | . . 16 23 12 Device 10 | . . 5 13 12 Storage 8 | . . 8 9 9 Processor 12 | . . . 14 18 Protection 1 | . . . . 3 Impact Weapon 17 | . . 17 18 18 Peak Build Rating 22 | 1 . 11 22 22 Average Rating 16 | . . 7 19 20 On Entrance 6 | . . . 11 21 Avg Prop Armor Cover (%) . | . . . . . Naked Turns 134 | . 63 71 . . Heaviest Build 29 | 5 . 19 20 29 Greatest Support 60 | 3 3 20 30 60 Greatest Overweight (x) 8 | 1 . . . 8 Average Overweight (x) . | . . . . 1 Largest Inventory Capacity 10 | 8 5 8 8 10 Average Capacity 7 | 6 5 7 8 8 Most Carried 7 | 5 5 6 7 7 Average Carried 5 | 3 5 4 6 5 Final Capacity 10 | 5 5 8 8 10 Final Carried 7 | 5 5 6 7 5 Class Distribution -------------------- 66% | Gladiator 28% | Mutant 5% | Scavenger-Gladiator Dominant Class ---------------- Mutant | -10/Materials Mutant | -9/Materials Gladiator | -8/Materials Gladiator | -8/Storage Resources | -11 -10 -9 -8 -8 ----------- Run | Yrd Mat Mat Mat Sto Matter Collected 492 | 210 . 110 35 137 Remotely . | . . . . . Salvage Created 1506 | . . 324 133 1049 Parts 40 | . . 11 3 26 Haulers Intercepted 5 | . . . 1 4 Recyclers Shooed 1 | . . . . 1 Parts Field Recycled . | . . . . . Retrieved Matter . | . . . . . Parts Self-Destructed . | . . . . . Prevented . | . . . . . Parts Restored . | . . . . . Kills | -11 -10 -9 -8 -8 ------- Run | Yrd Mat Mat Mat Sto Combat Hostiles Destroyed 26 | . . 6 2 18 Melee 17 | . . 4 2 11 Classes Destroyed 5 | . . 2 1 2 Hauler 5 | . . . 1 4 Recycler 3 | . . 2 . 1 Grunt 20 | . . 6 2 12 Sentry 5 | . . . . 5 Hunter 1 | . . . . 1 Best Kill Streak 6 | . . 4 1 6 Combat Bots Only 5 | . . 3 1 5 Max Kills in Single Turn 1 | . . 1 1 1 Gunslinging . | . . . . . Exploded . | . . . . . Melee 1 | . . 1 1 1 Uniques/NPCs Destroyed . | . . . . . Combat | -11 -10 -9 -8 -8 -------- Run | Yrd Mat Mat Mat Sto Hostile Shots Fired 242 | . . 94 12 136 Missed 64 | . . 29 5 30 Hits 178 | . . 65 7 106 Projectile 178 | . . 65 7 106 Critical Strikes 7 | . . 1 . 6 Damage Taken 2355 | . . 762 99 1494 Core 816 | . . 252 26 538 Absorbed by Shields 296 | . . 103 13 180 Core Remaining (%) 79 | 100 100 37 . . Volleys Fired . | . . . . . Largest . | . . . . . Hottest . | . . . . . Shots Fired . | . . . . . Gun . | . . . . . Cannon . | . . . . . Launcher . | . . . . . Special . | . . . . . Kinetic . | . . . . . Thermal . | . . . . . Explosive . | . . . . . Electromagnetic . | . . . . . Robot Hit Streak . | . . . . . Robot Miss Streak . | . . . . . Penetration Max . | . . . . . Secondary Targets . | . . . . . Shots Hit Robots 118 | . . 24 17 77 Core Hits 22 | . . 6 3 13 Critical Kills 3 | . . 1 1 1 Critical Parts Destroyed 12 | . . 2 . 10 Critical Strikes 16 | . . 3 1 12 Smash 16 | . . 3 1 12 Melee Attacks 150 | . . 29 22 99 Impact 150 | . . 29 22 99 Slashing . | . . . . . Piercing . | . . . . . Sneak Attacks 15 | . . 3 2 10 Combat Hostiles 1 | . . . . 1 Follow-up Attacks 20 | . . 4 3 13 Damage Inflicted 4679 | . . 820 591 3268 Guns . | . . . . . Cannons . | . . . . . Explosions . | . . . . . Melee 4679 | . . 820 591 3268 Ramming . | . . . . . Kinetic . | . . . . . Thermal . | . . . . . Explosive . | . . . . . Electromagnetic . | . . . . . Impact 4679 | . . 820 591 3268 Slashing . | . . . . . Piercing . | . . . . . Highest Corruption 47 | . . 7 . 47 Average Corruption 9 | . . 7 . 9 Corruption Purged . | . . . . . Corruption Blocked . | . . . . . Effects 21 | . . . . 21 Message Errors 9 | . . . . 9 Matter Fused 3 | . . . . 3 Heat Flow Errors 1 | . . . . 1 Energy Discharges 3 | . . . . 3 Data Loss (minor) 1 | . . . . 1 Data Loss (major) 2 | . . . . 2 Alerts 2 | . . . . 2 Overload Shots . | . . . . . Overflow Damage 780 | . . 183 32 565 Projectiles . | . . . . . Explosions . | . . . . . Melee 780 | . . 183 32 565 Knockbacks 14 | . . 3 2 9 Impact 14 | . . 3 2 9 Kinetic . | . . . . . Secondary . | . . . . . Self-Inflicted Damage . | . . . . . Shots . | . . . . . Rammed . | . . . . . Targets Rammed . | . . . . . Kicked . | . . . . . Crushed . | . . . . . Highest Temperature 269 | . . 6 . 269 Average Temperature 106 | . . 6 . 112 Received Heat Transfer 1153 | . . 395 54 704 Siege Activations . | . . . . . Martial Activations . | . . . . . Shielding Activations . | . . . . . Robots Disrupted . | . . . . . Combat Hostiles . | . . . . . Robots Corrupted 13 | . . 2 1 10 Combat Hostiles 9 | . . 2 . 7 Parts Fried 14 | . . 2 1 11 Impact Corruptions 39 | . . 8 4 27 Robots Melted . | . . . . . Combat Hostiles . | . . . . . Parts Melted . | . . . . . Heat Transferred . | . . . . . Parts Sabotaged . | . . . . . Parts Stolen . | . . . . . Parts Stripped . | . . . . . Power Chain Reactions . | . . . . . Alert | -11 -10 -9 -8 -8 ------- Run | Yrd Mat Mat Mat Sto Maximum Alert Level . | . . . . . Low Security (%) 100 | 100 100 100 100 100 Level 1 . | . . . . . Level 2 . | . . . . . Level 3 . | . . . . . Level 4 . | . . . . . Level 5 . | . . . . . High Security . | . . . . . Max Security . | . . . . . Peak Influence 136 | . 9 75 35 136 Initial 20 | . . . 20 . Average 41 | . 1 24 7 65 Influence Increases 789 | . 9 175 81 524 Destroy 0b10 Robot/C 520 | . . 120 40 360 Destroy 0b10 Robot/NC 40 | . . 10 5 25 Destroy Leader 120 | . . 20 2 98 Successful Hack 47 | . 9 10 4 24 Disable Machine 15 | . . . 15 . Destroy Structure 2 | . . . . 2 Lose Combat Pursuer 45 | . . 15 15 15 Influence Decreases 660 | . 9 125 131 395 Entered New Map 30 | . . . 30 . Time Decay 533 | . 9 125 101 298 Lost Part 97 | . . . . 97 Squads Dispatched 5 | . . . 3 2 Investigation 1 | . . . . 1 Extermination . | . . . . . Reinforcement 2 | . . . 1 1 Assault 2 | . . . 2 . Garrison . | . . . . . Intercept . | . . . . . Searches Triggered . | . . . . . Construction Impeded . | . . . . . Haulers Reinforced . | . . . . . Active Scanning Responses . | . . . . . Cargo Convoy Interrupts . | . . . . . Stealth | -11 -10 -9 -8 -8 --------- Run | Yrd Mat Mat Mat Sto Distress Signals 3 | . . 2 1 . Communications Jammed . | . . . . . Distress Signals . | . . . . . Times Spotted 34 | . 3 9 3 19 Peak Tracking Total 6 | . 4 5 2 6 Tactical Retreats 3 | . . 1 1 1 Traps | -11 -10 -9 -8 -8 ------- Run | Yrd Mat Mat Mat Sto Traps Triggered 1 | . . . . 1 Indirectly . | . . . . . Trap Hack Attempts . | . . . . . Triggered . | . . . . . Disarmed . | . . . . . Reprogrammed . | . . . . . Reused . | . . . . . Traps Extracted . | . . . . . Installed . | . . . . . Triggered . | . . . . . Machines | -11 -10 -9 -8 -8 ---------- Run | Yrd Mat Mat Mat Sto Machines Disabled 1 | . . . 1 . Max in Single Turn 1 | . . . 1 . Garrison Access 1 | . . . 1 . Machines Repaired . | . . . . . Machines Dismantled . | . . . . . Machines Sabotaged . | . . . . . Overloaded Fab Kills . | . . . . . Hacking | -11 -10 -9 -8 -8 --------- Run | Yrd Mat Mat Mat Sto Machines Accessed 8 | . 2 1 2 3 Terminals 8 | . 2 1 2 3 Fabricators . | . . . . . Repair Stations . | . . . . . Recycling Units . | . . . . . Scanalyzers . | . . . . . Garrison Access . | . . . . . Total Hacks 21 | . 7 3 4 7 Successful 11 | . 2 2 2 5 Failed 10 | . 5 1 2 2 Catastrophic . | . . . . . Database Lockouts . | . . . . . Manual 13 | . 7 1 3 2 Terminals 21 | . 7 3 4 7 Fabricators . | . . . . . Repair Stations . | . . . . . Recycling Units . | . . . . . Scanalyzers . | . . . . . Garrison Access . | . . . . . Terminal Hacks 6 | . . 1 1 4 Part Schematic 2 | . . . . 2 Robot Analysis 1 | . . . . 1 Prototype ID Bank 1 | . . . 1 . Hauler Manifests 2 | . . 1 . 1 Fabricator Hacks . | . . . . . Repair Station Hacks . | . . . . . Recycling Unit Hacks . | . . . . . Scanalyzer . | . . . . . Garrison Access Hacks . | . . . . . Unauthorized Hacks 5 | . 2 1 1 1 Terminals 5 | . 2 1 1 1 Botnet 5 | . 2 1 1 1 Fabricators . | . . . . . Repair Stations . | . . . . . Recycling Units . | . . . . . Scanalyzers . | . . . . . Garrison Access . | . . . . . Data Cores Recovered . | . . . . . Used . | . . . . . Hacking Detections 7 | . 1 1 2 3 Full Trace Events . | . . . . . Feedback Events . | . . . . . Feedback Blocked . | . . . . . Robot Schematics Acquired . | . . . . . Robots Built . | . . . . . Authchips . | . . . . . Time . | . . . . . Total Robot Build Rating . | . . . . . Part Schematics Acquired 2 | . . . . 2 Parts Built . | . . . . . Authchips . | . . . . . Time . | . . . . . Total Part Build Rating . | . . . . . Part Studies Acquired . | . . . . . Parts Repaired . | . . . . . Time . | . . . . . Parts Recycled . | . . . . . Recycled Matter . | . . . . . Retrieved Matter . | . . . . . Retrieved Components . | . . . . . Parts Scanalyzed . | . . . . . Part Schematics Acquired . | . . . . . Parts Damaged . | . . . . . Bothacking | -11 -10 -9 -8 -8 ------------ Run | Yrd Mat Mat Mat Sto Used RIF Installer . | . . . . . Robots Hacked . | . . . . . Non-combat . | . . . . . Combat . | . . . . . Robot Hacks Applied . | . . . . . Relay Couplers Released 2 | . . . 2 . Machine Destruction 2 | . . . 2 . Fabnet Peak Effective % . | . . . . . Robots Rewired . | . . . . . Allies Hacked . | . . . . . Hacks Repelled . | . . . . . Allies | -11 -10 -9 -8 -8 -------- Run | Yrd Mat Mat Mat Sto Total Allies . | . . . . . Largest Group . | . . . . . Highest-Rated Group . | . . . . . Highest-Rated Ally . | . . . . . Total Orders . | . . . . . Ally Attacks . | . . . . . Total Damage . | . . . . . Kills . | . . . . . Allies Corrupted . | . . . . . Allies Melted . | . . . . . Intel | -11 -10 -9 -8 -8 ------- Run | Yrd Mat Mat Mat Sto Active Infowar (turns) 671 | . . . 279 392 Sensors 671 | . . . 279 392 Robot Analysis Total 1 | . . . . 1 Derelict Logs Recovered . | . . . . . Drone Launches . | . . . . . Drone Recoveries . | . . . . . Exploration | -11 -10 -9 -8 -8 ------------- Run | Yrd Mat Mat Mat Sto Turns Passed 1870 | 44 63 376 372 1015 Spaces Moved 966 | 55 126 234 244 307 Core 298 | 55 126 53 . 64 Treads 21 | . . . . 21 Legs 647 | . . 181 244 222 Wheels . | . . . . . Hover . | . . . . . Flight . | . . . . . Fastest Speed 50 | 50 50 50 120 120 Average Speed 127 | 69 50 104 120 194 Slowest Speed 450 | 100 50 120 120 450 Overloaded Moves . | . . . . . Propulsion Burnouts . | . . . . . Robots Hopped . | . . . . . Potential Cave-ins . | . . . . . Cave-ins Triggered . | . . . . . Exploration Rate (%) 20 | 3 28 21 18 31 Regions Visited 4 Branch Regions 1 Pre-discovered Areas . | . . . . . Known Exits Taken 1 | . . . 1 . Unknown Exits Taken 3 | 1 1 1 . . Scrap Searched . | . . . . . Spaces Dug 2 | . . . . 2 Terrain Destroyed 2 | . . . . 2 Melee 2 | . . . . 2 Projectile . | . . . . . AOE . | . . . . . Terrain Rammed . | . . . . . Walls Destroyed . | . . . . . Machines Disabled . | . . . . . Actions | -11 -10 -9 -8 -8 --------- Run | Yrd Mat Mat Mat Sto Total 1372 | 60 125 319 288 580 Wait 236 | . . 48 19 169 Move 962 | 54 125 233 243 307 Hop . | . . . . . Pick Up 15 | 4 . 3 3 5 Fast Attach 14 | 1 . 3 3 7 Attach 14 | . . 5 2 7 Detach 1 | 1 . . . . Swap 4 | . . 3 . 1 Drop 2 | . . . . 2 Fire . | . . . . . Melee 124 | . . 24 18 82 Ram . | . . . . . Kick . | . . . . . Crush . | . . . . . Escape Stasis . | . . . . . Rewire . | . . . . . Trap . | . . . . . Miscellaneous . | . . . . . Route ------- -11/Scrapyard -10/Materials -9/Materials (discovered 2 exits: *Mat / [*Min]) -8/Materials -8/Storage History --------- Turn | Location | Event 5 | -11/Scrapyard | Discovered new exit (range 15) 45 | -11/Scrapyard | Entered Materials 100 | -10/Materials | Discovered new exit (range 11) 108 | -10/Materials | Entered another Materials area 108 | -9/Materials | Evolved 2 slots: Utility x2 288 | -9/Materials | Discovered new exit (range 6) 311 | -9/Materials | Build established: Mutant 385 | -9/Materials | Core integrity fell below 50% 389 | -9/Materials | Discovered new exit (range 9) 484 | -9/Materials | Entered another Materials area 484 | -8/Materials | Evolved 2 slots: Propulsion x1, Utility x1 777 | -8/Materials | Discovered new exit (range 5) 801 | -8/Materials | Identified exit to Storage 833 | -8/Materials | Build established: Gladiator 856 | -8/Materials | Entered Storage 1248 | -8/Storage | Core integrity fell below 50% 1263 | -8/Storage | Lost 3 parts (3n) 1436 | -8/Storage | Lost 3 parts (1n1u1w) 1692 | -8/Storage | Core integrity fell below 20% 1839 | -8/Storage | System corruption reached 10% 1862 | -8/Storage | System corruption reached 30% 1871 | -8/Storage | Destroyed by Y-45 Defender with Beam Rifle Last Messages --------------- 01838_ K-01 Serf collects debris. 01838_ Acquired Corrupted Lgt. Treads. 01838_ Integrated Corrupted Lgt. Treads (+8). 01840_ K-01 Serf collects debris. 01840_ Acquired 10 matter. 01841_ K-01 Serf collects debris. 01852_ System corrupted: IFF burst signal emitted. 01854_ Sneak attack on A-02 Transporter. 01854_ Destroyed Ion Engine. 01854_ Destroyed Transport Network Coupler. 01854_ A-02 Transporter system corrupted by crushing effect. 01855_ A-02 Transporter system terminally corrupted. 01855_ Weight Redist. System fried. 01855_ K-01 Serf collects debris. 01861_ Acquired Corrupted Lgt. Treads. 01861_ Integrated Corrupted Lgt. Treads (+15). 01862_ K-01 Serf collects debris. 01864_ Acquired Corrupted Med. Storage Unit. 01864_ Integrated Corrupted Med. Storage Unit (+15). 01868_ Critical hit (Burn: +37). Map ----- +----------------------------------------------------+ | # """ # # """ """ #??????????? | | # # # """ """ ##?????????? | | ? """ + %+%""" """ [ #?????????? | | ? """ # #%""" """ %*##?????????? | | ? """ # # """ """ #??????????? | | ? # # * #??????????? | | ######## #####T#######??????????? | | # # #??###????????????????? | | # """ #% #?????????????????????? | | # """ +%%T% #?????????????????????? | | # """%# #?????????????????????? | | # """ # #?????????????????????? | | # """ ## ##?????????????????????? | | # ## #########??????????????? | | # ## [# """ """ ?????????????? | | # ## !%# """ """ #??????????? | | # ## = # """ """ #??????????? | | # ## %+% #??????????? | | # ## k# #??????????? | | #### ### # #??????????? | | ???##??# %# #??????????? | | ??????## [######## ####??????????? | | ??????# [%[########## ????????? | | ??????# [[[ o u ????????? | | ??????# ????????? | | ??????# @ ????????? | | ??????# ########## ????????? | | ??????###/###?????????????????????? | | ???????? Y ???????????????????????? | | ???????"" "???????????????????????? | | ??????"R" "???????????????????????? | | ??????" " "???????????????????????? | | ????? ???????????????????????? | | ????? ???????????????????????? | | ????? ????????????????????????? | | ??????? ]????????????????????????? | | ???????###????????????????????????? | | ??????????????????????????????????? | | ??????????????????????????????????? | | ??????????????????????????????????? | | ??????????????????????????????????? | | ??????????????????????????????????? | | | | | | | | | | | | | | | | | +----------------------------------------------------+ Best States ------------- Heat Dissipation 31 Coolant Potential 50 Energy Generation 14 Energy Capacity 280 Matter Stores 300 Matter Capacity 300 Sight Range 16 Robot Scan Range 15 Terrain Scan Density 10 Armor Coverage 150 Evasion (%) 55 Melee Accuracy 5 Recoil Reduction 3 Item Schematics ----------------- System Restoration Module | -8/Storage | Hacked Insulated Plating | -8/Storage | Hacked Robot Schematics ------------------ None Fabricated ------------ Nothing Repaired ---------- Nothing Studied --------- None Alien Tech Used ----------------- None Achievements -------------- None Challenges ------------ None Game ------ Seed ZioniteLongswordCompactor Manual? 0 Play Time 00:13:18 Cumulative 276.1 hours Start 2025.11.16 @ 16:07:53 End 2025.11.16 @ 16:18:44 Sessions 1 Manual Loads 0 Difficulty Rogue Special Mode None Game No. 292 Rogue 288 Adventurer 3 Explorer 1 Win Type - Total 1 Types 1/0/0/0/0/0/0/0/0/0 Lore% 78 Gallery% 76 Achievement% 60 Wizard Run 0 Options --------- Layout 0 ASCII 0 Keyboard 0 Movement Numpad Keybinds 0 Fullscreen 2 Font 18/SmallcapsGlow Map View 76x50 Zoom Use 0% Tactical HUD 1 Map Filters NONE Filters NONE Steam 1 RUN: 877489f4-45e8-4cc5-ae96-ce90446e0590